bitfinex-derivatives/quotes_BTCF0:USTF0_20250422
["timestamp","ask_amount","ask_price","bid_price","bid_amount"]
[1745341370160,0.7040932,90941.0,90940.0,0.4191]
[1745341373059,0.7040932,90941.0,90940.0,0.6111]
[1745341374070,0.7040932,90941.0,90940.0,0.8031]
[1745341374367,0.7040932,90941.0,90940.0,0.6111]
[1745341374568,0.7040932,90941.0,90940.0,0.59735129]
[1745341374768,0.7043059,90941.0,90940.0,0.59735129]
[1745341374969,0.7043059,90941.0,90940.0,0.199]
[1745341375170,0.7866259,90941.0,90940.0,0.15940412]
[1745341375972,0.7866259,90941.0,90940.0,0.14015568]
[1745341376280,0.1098992,90936.0,90935.0,0.1087]
[1745341376571,0.1099028,90933.0,90932.0,0.39835129]
[1745341376964,0.1099028,90933.0,90932.0,0.51655129]
[1745341377165,0.1099028,90933.0,90932.0,0.59035129]
[1745341377368,0.1921828,90933.0,90932.0,0.70025529]
[1745341377566,0.1921828,90933.0,90932.0,0.81975529]
[1745341377771,0.1099028,90933.0,90932.0,0.79635724]
[1745341378066,0.1109028,90933.0,90932.0,0.91755724]
[1745341378663,0.001,90933.0,90932.0,0.91755724]
[1745341378863,0.001,90933.0,90932.0,0.89005954]
[1745341379064,0.001,90933.0,90932.0,0.90005954]
[1745341380570,0.1109028,90933.0,90932.0,0.90005954]
[1745341380767,0.001,90933.0,90932.0,0.90005954]
[1745341382069,0.00016469,90943.0,90942.0,0.109892]
[1745341382268,0.1208,90951.0,90950.0,0.1098823]
[1745341382465,0.08228,90957.0,90951.0,0.05494]
[1745341382669,0.2306765,90955.0,90954.0,0.109875]
[1745341383076,0.00835554,90955.0,90954.0,0.26228894]
[1745341383378,0.005,90959.0,90958.0,0.1088726]
[1745341383965,0.1098638,90967.0,90966.0,0.1098618]
[1745341384172,0.1208,90967.0,90966.0,0.81311734]
[1745341384374,0.1208,90967.0,90966.0,1.03771734]
[1745341384577,0.1208,90967.0,90966.0,1.00173162]
[1745341384974,0.2306618,90967.0,90966.0,1.00173162]
[1745341385271,0.2306618,90967.0,90966.0,1.19373162]
[1745341385272,0.1208,90967.0,90966.0,1.19373162]
[1745341385873,0.1248,90967.0,90966.0,1.19373162]
[1745341386069,0.2346618,90967.0,90966.0,1.19173162]
[1745341386575,0.1138618,90967.0,90966.0,1.19173162]
[1745341386771,0.1178618,90967.0,90966.0,1.20273162]
[1745341387472,0.1178618,90967.0,90966.0,1.24776758]
[1745341387672,0.12627837,90967.0,90966.0,1.24776758]
[1745341387867,0.12627837,90967.0,90966.0,1.23776758]
[1745341388877,0.24007837,90967.0,90966.0,1.23776758]
[1745341389774,0.12627837,90967.0,90966.0,1.24776758]
[1745341392275,0.12627837,90967.0,90966.0,1.1778915]
[1745341392871,0.12627837,90967.0,90966.0,1.26851259]
[1745341394370,0.12627837,90967.0,90966.0,1.24102586]
[1745341394879,0.12627837,90967.0,90966.0,0.60833344]
[1745341394880,0.226813,90967.0,90966.0,0.60833344]
[1745341395072,0.451613,90967.0,90966.0,0.49563344]
[1745341395573,0.451613,90967.0,90966.0,0.23803596]
[1745341396076,0.451613,90967.0,90966.0,0.04603596]
[1745341396877,0.337813,90967.0,90966.0,0.15589896]
[1745341397087,0.337813,90967.0,90966.0,0.34789896]
[1745341397984,0.23727837,90967.0,90966.0,0.34789896]
[1745341398183,0.01641657,90967.0,90966.0,0.70869896]
[1745341398376,0.01641657,90967.0,90966.0,0.68911871]
[1745341398678,0.01641657,90967.0,90966.0,0.92121871]
[1745341401174,0.01641657,90967.0,90966.0,0.90197822]
[1745341401473,0.01641657,90967.0,90966.0,1.1595757]
[1745341401676,0.12627837,90967.0,90966.0,1.1595757]
[1745341402071,0.01641657,90967.0,90966.0,1.1595757]
[1745341402482,0.24551657,90967.0,90966.0,1.1395757]
[1745341402781,0.35537837,90967.0,90966.0,0.49611554]
[1745341405382,0.35537837,90967.0,90966.0,0.4823714]
[1745341406787,0.35537837,90967.0,90966.0,0.44278702]
[1745341407182,0.35537837,90967.0,90966.0,0.30411554]
[1745341407380,0.35537837,90967.0,90966.0,0.04651806]
[1745341407582,0.109869,90961.0,90960.0,0.1098698]
[1745341407782,0.1098738,90958.0,90957.0,0.1098729]
[1745341407974,0.1098738,90958.0,90957.0,0.15709254]
[1745341408276,0.1098738,90958.0,90957.0,0.34909254]
[1745341408478,0.2303,90958.0,90957.0,0.34909254]
[1745341408982,0.2303,90958.0,90957.0,0.58489254]
[1745341409182,0.2303,90958.0,90957.0,0.94569254]
[1745341409380,0.2323,90958.0,90957.0,0.94569254]
[1745341409580,0.2333,90958.0,90957.0,0.94569254]
[1745341409780,0.3431726,90958.0,90957.0,0.94569254]
[1745341409985,0.3431726,90958.0,90957.0,0.92645024]
[1745341410282,0.2333,90958.0,90957.0,0.92645024]
[1745341410486,0.3431726,90958.0,90957.0,0.56565024]
[1745341411390,0.2333,90958.0,90957.0,0.56565024]
[1745341411591,0.1204,90958.0,90957.0,0.57565024]
[1745341411788,0.003,90958.0,90957.0,0.57565024]
[1745341411984,0.1094,90965.0,90964.0,0.1098654]
[1745341412287,0.1094,90965.0,90964.0,0.1198654]
[1745341412788,0.1094,90965.0,90964.0,0.2392654]
[1745341413180,0.1124,90965.0,90964.0,0.68986288]
[1745341413493,0.1164,90965.0,90964.0,0.68986288]
[1745341413688,0.007,90965.0,90964.0,0.68986288]
[1745341415291,0.007,90965.0,90964.0,0.67611965]
[1745341415488,0.007,90965.0,90964.0,0.69611965]
[1745341417489,0.0549257,90976.0,90964.0,0.69611965]
[1745341417490,0.10053463,90996.0,90968.0,0.50972199]
[1745341417792,0.3608,91018.0,90995.0,0.3608]
[1745341417793,0.07111461,91009.0,90995.0,0.3608]
[1745341417987,0.119,91008.0,91006.0,0.3608]
[1745341418185,0.3110525,91008.0,91006.0,0.53356719]
[1745341418391,0.1098135,91007.0,91006.0,0.53356719]
[1745341418695,0.1098135,91007.0,91006.0,0.52156719]
[1745341418880,0.1098341,90990.0,90984.0,0.3608]
[1745341419085,0.08224,90989.0,90986.0,0.0549194]
[1745341419282,0.19584,90988.0,90987.0,0.1098376]
[1745341419496,0.19584,90988.0,90987.0,0.2216376]
[1745341419691,0.08224,90988.0,90987.0,0.27711674]
[1745341419896,0.08224,90988.0,90987.0,0.39311674]
[1745341420195,0.08224,90988.0,90987.0,0.58511674]
[1745341420582,0.08424,90988.0,90987.0,0.58511674]
[1745341420787,0.002,90988.0,90987.0,0.58511674]
[1745341421695,0.002,90988.0,90987.0,0.58711674]
[1745341422697,0.002,90988.0,90987.0,0.59711674]
[1745341423890,0.002,90988.0,90987.0,0.58711674]
[1745341425001,0.002,90988.0,90987.0,0.59711674]
[1745341425499,0.0822,90996.0,90987.0,0.48727914]
[1745341425692,0.1967,90996.0,90995.0,0.470628]
[1745341425891,0.1967,90996.0,90995.0,0.45688911]
[1745341426293,0.1967,90996.0,90995.0,0.64888911]
[1745341426496,0.1967,90996.0,90995.0,0.76458911]
[1745341426696,0.2007,90996.0,90995.0,0.74535476]
[1745341427201,0.1987,90996.0,90995.0,0.74535476]
[1745341428298,0.3085267,90996.0,90995.0,0.192]
[1745341428497,0.6684227,90996.0,90995.0,0.197]
[1745341428899,0.6684227,90996.0,90995.0,0.15742639]
[1745341429095,0.8604227,90996.0,90995.0,0.005]
[1745341430296,0.6104227,90996.0,90995.0,0.005]
[1745341430494,0.1098364,90988.0,90987.0,0.05547914]
[1745341430690,0.10984,90986.0,90985.0,0.1098399]
[1745341431089,0.3349,90987.0,90986.0,0.1098388]
[1745341431293,0.111,90987.0,90986.0,0.1098388]
[1745341431493,0.1098388,90986.0,90985.0,0.192]
[1745341431692,0.1098388,90986.0,90985.0,0.24678606]
[1745341431893,0.1098388,90986.0,90985.0,0.24778606]
[1745341432094,0.1098388,90986.0,90985.0,0.05578606]
[1745341432402,0.1098388,90986.0,90985.0,0.05478606]
[1745341432590,0.10984,90985.0,90984.0,0.4706402]
[1745341433296,0.10984,90985.0,90984.0,0.3608]
[1745341433495,0.10984,90985.0,90984.0,0.41512491]
[1745341433693,0.10984,90985.0,90984.0,0.52496611]
[1745341434094,0.10984,90985.0,90984.0,0.71696611]
[1745341434689,0.10984,90985.0,90984.0,0.71796611]
[1745341434890,0.10984,90985.0,90984.0,0.67839244]
[1745341435098,0.10984,90985.0,90984.0,0.46815524]
[1745341436000,0.10984,90985.0,90984.0,0.35831404]
[1745341436197,0.19204,90985.0,90984.0,0.55031404]
[1745341436400,0.19204,90985.0,90984.0,0.53657319]
[1745341437801,0.19204,90985.0,90984.0,0.50909148]
[1745341438402,0.19204,90985.0,90984.0,0.61893268]
[1745341439100,0.0822,90985.0,90984.0,0.61893268]
[1745341439400,0.0822,90985.0,90984.0,0.72903268]
[1745341439602,0.19204,90985.0,90984.0,0.72903268]
[1745341441003,0.19204,90985.0,90984.0,0.50909148]
[1745341441205,0.1098473,90979.0,90978.0,0.00016491]
[1745341441508,0.1159,90984.0,90959.0,0.3608]
[1745341441704,0.109869,90961.0,90959.0,0.3608]
[1745341441905,0.109869,90961.0,90960.0,0.28362611]
[1745341442109,0.192069,90961.0,90960.0,0.28362611]
[1745341442307,0.192069,90961.0,90960.0,0.47562611]
[1745341442702,0.192069,90961.0,90960.0,0.47662611]
[1745341442903,0.0822,90961.0,90960.0,0.68013721]
[1745341443299,0.192069,90961.0,90960.0,0.66089563]
[1745341443704,0.20040982,90961.0,90960.0,0.66089563]
[1745341444108,0.20040982,90961.0,90960.0,0.66589563]
[1745341444506,0.20040982,90961.0,90960.0,0.66489563]
[1745341444706,0.20040982,90961.0,90960.0,0.66589563]
[1745341445111,0.20040982,90961.0,90960.0,0.66489563]
[1745341445308,0.20040982,90961.0,90960.0,0.66789563]
[1745341445511,0.09054082,90961.0,90960.0,0.92549311]
[1745341446111,0.31590982,90961.0,90960.0,0.92549311]
[1745341446317,0.31590982,90961.0,90960.0,0.92049311]
[1745341446518,0.31690982,90961.0,90960.0,0.92649311]
[1745341446709,0.31690982,90961.0,90960.0,0.91274922]
[1745341447312,0.20140982,90961.0,90960.0,0.91274922]
[1745341447513,0.20140982,90961.0,90960.0,0.87316682]
[1745341448017,0.20140982,90961.0,90960.0,0.87416682]
[1745341449119,0.20140982,90961.0,90960.0,0.87616682]
[1745341449627,0.20140982,90961.0,90960.0,0.87916682]
[1745341449813,0.09154082,90961.0,90960.0,0.87916682]
[1745341450012,0.09158082,90961.0,90960.0,0.87916682]
[1745341451417,0.0599178,90989.0,90980.0,0.164766]
[1745341451418,0.0549218,90983.0,90980.0,0.164766]
[1745341451726,0.0549223,90982.0,90981.0,0.1122]
[1745341452024,0.0549223,90982.0,90981.0,0.3147047]
[1745341452225,0.0549223,90982.0,90981.0,0.5067047]
[1745341452621,0.1371623,90982.0,90981.0,0.5057047]
[1745341452823,0.3661623,90982.0,90981.0,0.3958611]
[1745341453024,0.3661623,90982.0,90981.0,0.3039]
[1745341453324,0.3661623,90982.0,90981.0,0.3069]
[1745341453522,0.3661623,90982.0,90981.0,0.195]
[1745341453727,0.4744623,90982.0,90981.0,0.195]
[1745341454322,0.48288512,90982.0,90981.0,0.196]
[1745341455129,0.37458512,90982.0,90981.0,0.3058449]
[1745341455531,0.37458512,90982.0,90981.0,0.3068449]
[1745341456835,0.37458512,90982.0,90981.0,0.3028449]
[1745341457139,0.37458512,90982.0,90981.0,0.3058449]
[1745341457335,0.37458512,90982.0,90981.0,0.29310223]
[1745341458034,0.23742282,90982.0,90981.0,0.29310223]
[1745341458338,0.09058282,90982.0,90981.0,0.40510223]
[1745341458725,0.00842282,90982.0,90981.0,0.36552645]
[1745341458928,0.08216,90982.0,90981.0,0.37552645]
[1745341459933,0.08216,90982.0,90981.0,0.35628977]
[1745341461032,0.005,90989.0,90987.0,0.1098376]
[1745341461229,1.67504,90988.0,90987.0,0.4706376]
[1745341462035,1.67504,90988.0,90987.0,0.6877376]
[1745341462238,1.67504,90988.0,90987.0,0.8817376]
[1745341462530,1.68317261,90988.0,90987.0,0.8817376]
[1745341462734,1.68317261,90988.0,90987.0,0.6619]
[1745341462932,2.02500901,90988.0,90987.0,0.6619]
[1745341463325,2.02500901,90988.0,90987.0,0.7717376]
[1745341463522,1.83301261,90988.0,90987.0,0.7717376]
[1745341463735,1.91517261,90988.0,90987.0,0.8817376]
[1745341464032,2.02500901,90988.0,90987.0,0.8817376]
[1745341465026,1.90740901,90988.0,90987.0,0.8817376]
[1745341465231,1.79757261,90988.0,90987.0,0.8817376]
[1745341465529,1.79757261,90988.0,90987.0,0.8837376]
[1745341466132,1.90567261,90988.0,90987.0,0.8837376]
[1745341466333,1.90567261,90988.0,90987.0,0.8857376]
[1745341466530,2.01550901,90988.0,90987.0,0.5588]
[1745341466728,2.01550901,90988.0,90987.0,0.198]
[1745341467326,2.01550901,90988.0,90987.0,0.18425853]
[1745341467737,1.93334901,90988.0,90987.0,0.18425853]
[1745341467934,2.01550901,90988.0,90987.0,0.65489613]
[1745341468232,2.01550901,90988.0,90987.0,0.18425853]
[1745341469136,2.01550901,90988.0,90987.0,0.15787507]
[1745341469533,2.01550901,90988.0,90987.0,0.26771267]
[1745341469734,2.01550901,90988.0,90987.0,0.15187507]
[1745341469927,2.01550901,90988.0,90987.0,0.26371267]
[1745341470435,2.01550901,90988.0,90987.0,0.15487507]
[1745341470631,2.01550901,90988.0,90987.0,0.26471267]
[1745341471026,2.01550901,90988.0,90987.0,0.22513849]
[1745341471226,2.01550901,90988.0,90987.0,0.2059008]
[1745341471825,2.01550901,90988.0,90987.0,0.18041836]
[1745341472726,2.01550901,90988.0,90987.0,0.07058076]
[1745341472930,2.13460901,90988.0,90987.0,0.07058076]
[1745341475328,2.01550901,90988.0,90987.0,0.06558076]
[1745341475630,2.01550901,90988.0,90987.0,0.07058076]
[1745341476136,2.01550901,90988.0,90987.0,0.06758076]
[1745341476328,2.01550901,90988.0,90987.0,0.07058076]
[1745341477941,2.01550901,90988.0,90987.0,0.05683915]
[1745341478735,2.01550901,90988.0,90987.0,0.01726331]
[1745341479140,2.01550901,90988.0,90987.0,0.12710091]
[1745341479436,0.10984,90985.0,90984.0,0.1670206]
[1745341479931,0.33154,90985.0,90984.0,0.1670206]
[1745341480134,0.33154,90985.0,90984.0,0.3590206]
[1745341481335,0.33154,90985.0,90984.0,0.3620206]
[1745341481535,0.33154,90985.0,90984.0,0.3640206]
[1745341482135,0.33154,90985.0,90984.0,0.33763852]
[1745341482734,0.30386,90985.0,90984.0,0.33763852]
[1745341483335,0.51415792,90985.0,90984.0,0.33763852]
[1745341484033,0.43199792,90985.0,90984.0,0.44953852]
[1745341484240,0.51407792,90985.0,90984.0,0.44953852]
[1745341484639,0.51407792,90985.0,90984.0,0.40996501]
[1745341485935,0.51407792,90985.0,90984.0,0.29806501]
[1745341486332,0.41362,90985.0,90984.0,0.29806501]
[1745341487638,0.30378,90985.0,90984.0,0.29806501]
[1745341488038,0.30378,90985.0,90984.0,0.39452427]
[1745341491343,0.41362,90985.0,90984.0,0.39452427]
[1745341492248,0.41362,90985.0,90984.0,0.39552427]
[1745341492438,0.41362,90985.0,90984.0,0.39352427]
[1745341492638,0.41362,90985.0,90984.0,0.39552427]
[1745341493340,0.30132,90985.0,90984.0,0.37628725]
[1745341494145,0.19148,90985.0,90984.0,0.38628725]
[1745341494543,0.29193792,90985.0,90984.0,0.38628725]
[1745341494940,0.40177792,90985.0,90984.0,0.32100785]
[1745341495246,0.20985792,90985.0,90984.0,0.32100785]
[1745341495443,0.29193792,90985.0,90984.0,0.21116665]
[1745341495648,0.40177792,90985.0,90984.0,0.21116665]
[1745341495948,0.29193792,90985.0,90984.0,0.21116665]
[1745341496244,0.48393792,90985.0,90984.0,0.12900785]
[1745341496643,0.59593792,90985.0,90984.0,0.09934577]
[1745341498147,0.40393792,90985.0,90984.0,0.29134577]
[1745341498341,0.40393792,90985.0,90984.0,0.27760468]
[1745341498543,0.40393792,90985.0,90984.0,0.39120468]
[1745341498842,0.29193792,90985.0,90984.0,0.39120468]
[1745341499043,0.29193792,90985.0,90984.0,0.3056]
[1745341499342,0.29193792,90985.0,90984.0,0.4154412]
[1745341499950,0.29193792,90985.0,90984.0,0.3018412]
[1745341500154,0.29193792,90985.0,90984.0,0.27545887]
[1745341500746,0.20985792,90985.0,90984.0,0.27545887]
[1745341501052,1.60101261,90988.0,90984.0,0.64625887]
[1745341501256,0.0001646,90991.0,90990.0,0.109834]
[1745341501446,0.0822446,90991.0,90990.0,0.46139802]
[1745341501640,0.0822446,90991.0,90990.0,0.56839802]
[1745341502141,0.0822446,90991.0,90990.0,0.75939802]
[1745341502351,0.20015349,90991.0,90990.0,0.6698]
[1745341502545,0.20015349,90991.0,90990.0,0.6598]
[1745341502747,0.20015349,90991.0,90990.0,0.5528]
[1745341502946,0.20015349,90991.0,90990.0,0.51322734]
[1745341503141,0.41315349,90991.0,90990.0,0.51322734]
[1745341503447,0.77395349,90991.0,90990.0,0.17509156]
[1745341503842,0.77495349,90991.0,90990.0,0.14760723]
[1745341504240,0.1098473,90979.0,90978.0,0.107]
[1745341504453,0.1098583,90980.0,90979.0,0.0549258]
[1745341504648,0.1098583,90979.0,90978.0,0.2168595]
[1745341505153,0.3378583,90979.0,90978.0,0.4088595]
[1745341505349,0.3378583,90979.0,90978.0,0.192]
[1745341506548,0.3378583,90979.0,90978.0,0.3018595]
[1745341506749,0.3378583,90979.0,90978.0,0.192]
[1745341507058,0.3378583,90979.0,90978.0,0.194]
[1745341507547,0.3378583,90979.0,90978.0,0.196]
[1745341508147,0.3378583,90979.0,90978.0,0.16961298]
[1745341508751,0.8378583,90979.0,90978.0,0.16961298]
[1745341508951,0.8378583,90979.0,90978.0,0.11628706]
[1745341509151,0.8378583,90979.0,90978.0,0.004]
[1745341509346,0.8378583,90979.0,90978.0,0.1118595]
[1745341509652,0.728,90979.0,90978.0,0.09061858]
[1745341509954,0.31008,90979.0,90978.0,0.06313241]
[1745341510148,0.4199383,90979.0,90978.0,0.25513241]
[1745341511452,0.4209383,90979.0,90978.0,0.25513241]
[1745341511650,0.31108,90979.0,90978.0,0.25513241]
[1745341512055,0.31008,90979.0,90978.0,0.25513241]
[1745341513958,0.4199383,90979.0,90978.0,0.25513241]
[1745341514152,0.4199383,90979.0,90978.0,0.36913241]
[1745341515054,0.31008,90979.0,90978.0,0.36913241]
[1745341515445,0.1141,90979.0,90978.0,0.36913241]
[1745341515647,0.1141,90979.0,90978.0,0.48253241]
[1745341515846,0.1961,90979.0,90978.0,0.48253241]
[1745341516150,0.1961,90979.0,90978.0,0.4194]
[1745341516353,0.1961,90979.0,90978.0,0.5392595]
[1745341516846,0.1961,90979.0,90978.0,0.5402595]
[1745341517049,0.1141,90979.0,90978.0,0.5402595]
[1745341517252,0.1961,90979.0,90978.0,0.5392595]
[1745341517469,0.1961,90979.0,90978.0,0.5402595]
[1745341518051,0.1961,90979.0,90978.0,0.88182092]
[1745341518659,0.1961,90979.0,90978.0,0.87182092]
[1745341518956,0.1961,90979.0,90978.0,0.51202092]
[1745341519265,0.3059583,90979.0,90978.0,0.1610194]
[1745341519570,0.6667583,90979.0,90978.0,0.12144003]
[1745341520949,0.3059583,90979.0,90978.0,0.12144003]
[1745341521155,0.1961,90979.0,90978.0,0.12144003]
[1745341521462,0.6667583,90979.0,90978.0,0.12144003]
[1745341521759,0.7743583,90979.0,90978.0,0.12144003]
[1745341522155,0.7743583,90979.0,90978.0,0.001]
[1745341522355,0.1961,90979.0,90978.0,0.1118595]
[1745341522551,0.1961,90979.0,90978.0,0.3222595]
[1745341523359,0.1961,90979.0,90978.0,0.4081595]
[1745341523961,0.1961,90979.0,90978.0,0.3028595]
[1745341524156,0.1961,90979.0,90978.0,0.27647424]
[1745341524467,0.1971,90979.0,90978.0,0.27647424]
[1745341524973,0.6677583,90979.0,90978.0,0.192]
[1745341525153,0.6667583,90979.0,90978.0,0.192]
[1745341525356,0.6667583,90979.0,90978.0,0.15241766]
[1745341525557,0.7753583,90979.0,90978.0,0.15241766]
[1745341526165,0.1098655,90973.0,90972.0,0.00016491]
[1745341526459,0.1098679,90971.0,90970.0,0.0907925]
[1745341527165,0.2184679,90971.0,90970.0,0.2827925]
[1745341527952,0.2184679,90971.0,90970.0,0.194]
[1745341528462,0.2184679,90971.0,90970.0,0.3038691]
[1745341528659,0.2184679,90971.0,90970.0,0.3048691]
[1745341529452,0.2184679,90971.0,90970.0,0.29112514]
[1745341530359,0.2184679,90971.0,90970.0,0.28912514]
[1745341530555,0.2184679,90971.0,90970.0,0.29112514]
[1745341530768,0.2184679,90971.0,90970.0,0.20125604]
[1745341531059,0.2184679,90971.0,90970.0,0.18125604]
[1745341531670,0.5792679,90971.0,90970.0,0.18125604]
[1745341532558,0.5792679,90971.0,90970.0,0.14167176]
[1745341534353,0.67974254,90971.0,90970.0,0.14167176]
[1745341534556,0.67974254,90971.0,90970.0,0.1224294]
[1745341536058,0.67974254,90971.0,90970.0,0.09494032]
[1745341538653,0.67974254,90971.0,90970.0,0.05535602]
[1745341539157,0.67974254,90971.0,90970.0,0.003]
[1745341539459,0.1098776,90963.0,90962.0,0.45285713]
[1745341539668,0.1918776,90963.0,90962.0,0.45285713]
[1745341539855,0.1918776,90963.0,90962.0,0.56273593]
[1745341540265,0.4091776,90963.0,90962.0,0.64485713]
[1745341540561,0.4091776,90963.0,90962.0,0.63111249]
[1745341541155,0.4091776,90963.0,90962.0,0.85149129]
[1745341541957,0.4091776,90963.0,90962.0,0.74461249]
[1745341542155,0.4091776,90963.0,90962.0,0.85449129]
[1745341542361,0.4091776,90963.0,90962.0,0.85749129]
[1745341542867,0.4091776,90963.0,90962.0,0.5288788]
[1745341543260,0.4091776,90963.0,90962.0,0.50138951]
[1745341547364,0.4091776,90963.0,90962.0,0.47499997]
[1745341548465,0.2966776,90963.0,90962.0,0.47499997]
[1745341550669,0.2966776,90963.0,90962.0,0.46125542]
[1745341554968,0.2966776,90963.0,90962.0,0.56535542]
[1745341555168,0.4050776,90963.0,90962.0,0.56535542]
[1745341555373,0.4050776,90963.0,90962.0,0.53896588]
[1745341555569,0.4050776,90963.0,90962.0,0.43486588]
[1745341555875,0.4050776,90963.0,90962.0,0.32436588]
[1745341556177,0.4050776,90963.0,90962.0,0.42746588]
[1745341556474,0.4050776,90963.0,90962.0,0.38788157]
[1745341556872,0.4049976,90963.0,90962.0,0.3686392]
[1745341559566,0.4049976,90963.0,90962.0,0.3411501]
[1745341559781,0.4049976,90963.0,90962.0,0.1281713]
[1745341560175,0.4049976,90963.0,90962.0,0.2380501]
[1745341560673,0.2132,90963.0,90962.0,0.7018501]
[1745341560873,0.08192,90966.0,90965.0,0.1098752]
[1745341561081,0.10047464,90988.0,90985.0,0.054925]
[1745341561270,0.21032204,90988.0,90987.0,0.0961065]
[1745341561470,0.29224204,90988.0,90987.0,0.0961065]
[1745341561667,0.18239464,90988.0,90987.0,0.0961065]
[1745341562070,0.10047464,90988.0,90987.0,0.0961065]
[1745341562379,0.29099464,90988.0,90987.0,0.4020065]
[1745341562571,0.21107464,90988.0,90987.0,0.4020065]
[1745341562773,0.18439464,90988.0,90987.0,0.36243415]
[1745341562975,0.08392,90988.0,90987.0,0.36243415]
[1745341563166,0.08292,90988.0,90987.0,0.36243415]
[1745341563375,0.08292,90988.0,90987.0,0.3159]
[1745341563675,0.08592,90988.0,90987.0,0.5356526]
[1745341564176,0.08592,90988.0,90987.0,0.4257486]
[1745341564371,0.08292,90988.0,90987.0,0.4257486]
[1745341564567,0.08192,90988.0,90987.0,0.4257486]
[1745341564776,0.19812,90988.0,90987.0,0.4257486]
[1745341564973,0.4204674,90988.0,90987.0,0.5383486]
[1745341565167,0.31062,90988.0,90987.0,0.5383486]
[1745341565367,0.31062,90988.0,90987.0,0.51911233]
[1745341565771,0.19812,90988.0,90987.0,0.51911233]
[1745341565975,0.08192,90988.0,90987.0,0.51911233]
[1745341566483,0.19812,90988.0,90987.0,0.51911233]
[1745341567178,0.08192,90988.0,90987.0,0.51911233]
[1745341568580,0.08192,90988.0,90987.0,0.93121233]
[1745341568982,0.07135644,91000.0,90999.0,0.1098341]
[1745341569182,0.46627464,91019.0,91018.0,0.1098112]
[1745341569382,0.54819464,91019.0,91018.0,0.07024791]
[1745341569683,0.54819464,91019.0,91017.0,0.2149124]
[1745341569684,0.1098112,91018.0,91017.0,0.2149124]
[1745341569990,0.2210112,91018.0,91017.0,0.26046947]
[1745341570180,0.2210112,91018.0,91017.0,0.34265707]
[1745341570376,0.2210112,91018.0,91017.0,0.33965707]
[1745341570571,0.3311112,91018.0,91017.0,0.23755707]
[1745341570771,0.42140711,91018.0,91017.0,0.23755707]
[1745341571081,0.53900711,91018.0,91017.0,0.23755707]
[1745341571475,0.42540711,91018.0,91017.0,0.23755707]
[1745341571675,0.42740711,91018.0,91017.0,0.23755707]
[1745341571877,0.31759591,91018.0,91017.0,0.23755707]
[1745341572076,0.20639591,91018.0,91017.0,0.74573213]
[1745341572489,0.09629591,91018.0,91017.0,1.10653213]
[1745341573183,0.20639591,91018.0,91017.0,1.10653213]
[1745341573571,0.20439591,91018.0,91017.0,1.10653213]
[1745341574284,0.20239591,91018.0,91017.0,1.33703213]
[1745341574473,0.20039591,91018.0,91017.0,1.22233213]
[1745341574676,0.31289591,91018.0,91017.0,1.22233213]
[1745341575190,0.31289591,91018.0,91017.0,1.33703213]
[1745341577181,0.31289591,91018.0,91017.0,1.22233213]
[1745341577387,0.31289591,91018.0,91017.0,1.10653213]
[1745341577973,0.20239591,91018.0,91017.0,1.21373213]
[1745341578173,0.005,91019.0,91018.0,0.1098112]
[1745341578378,0.09232,91019.0,91018.0,0.3221112]
[1745341578575,0.09232,91019.0,91018.0,0.3321112]
[1745341578889,0.10054185,91019.0,91018.0,0.3321112]
[1745341579075,0.10054185,91019.0,91018.0,0.5241112]
[1745341579282,1.95376,91034.0,91033.0,0.1097931]
[1745341579484,2.1508719,91034.0,91033.0,0.1097931]
[1745341579787,2.2663719,91034.0,91033.0,0.1097931]
[1745341579988,2.06926,91034.0,91033.0,0.1097931]
[1745341580197,2.15658,91034.0,91033.0,0.4105931]
[1745341580490,2.2663719,91034.0,91033.0,0.4105931]
[1745341580789,2.2663719,91034.0,91033.0,0.192]
[1745341581295,2.2683719,91034.0,91033.0,0.192]
[1745341581487,1.71858296,91034.0,91033.0,0.6625931]
[1745341581792,0.0548841,91054.0,91048.0,0.106775]
[1745341581983,0.09232,91049.0,91048.0,0.106775]
[1745341582184,0.09232,91049.0,91048.0,0.407575]
[1745341582379,0.09232,91049.0,91048.0,0.39384327]
[1745341582688,0.08732,91052.0,91051.0,0.1097714]
[1745341582883,0.08732,91052.0,91051.0,0.3250714]
[1745341583082,0.00804138,91057.0,91056.0,0.1097654]
[1745341583287,0.09536138,91057.0,91054.0,0.0548838]
[1745341583588,0.2217654,91056.0,91055.0,0.1097666]
[1745341583782,0.112,91056.0,91055.0,0.1097666]
[1745341583982,0.109769,91054.0,91053.0,0.1097688]
[1745341584188,0.109769,91054.0,91053.0,0.4112688]
[1745341584389,0.335169,91054.0,91053.0,0.5160688]
[1745341585786,0.335169,91054.0,91053.0,0.4063]
[1745341585987,0.335169,91054.0,91053.0,0.516069]
[1745341586294,0.335169,91054.0,91053.0,0.4083]
[1745341586892,0.335169,91054.0,91053.0,0.518069]
[1745341587080,0.2254,91054.0,91053.0,0.518069]
[1745341587280,0.2254,91054.0,91053.0,0.49884663]
[1745341587493,0.3351678,91054.0,91053.0,0.2988]
[1745341587794,0.3351678,91054.0,91053.0,0.194]
[1745341587981,0.3351678,91054.0,91053.0,0.195]
[1745341588183,0.3351678,91054.0,91053.0,0.003]
[1745341588994,0.4224878,91054.0,91053.0,0.003]
[1745341589191,0.3351678,91054.0,91053.0,0.195]
[1745341589387,0.4224878,91054.0,91053.0,0.195]
[1745341589581,0.4224878,91054.0,91053.0,0.16863595]
[1745341590783,0.3351678,91054.0,91053.0,0.16863595]
[1745341590984,0.1097835,91041.0,91040.0,0.4121]
[1745341592089,0.1097835,91041.0,91040.0,0.4151]
[1745341592293,0.1097835,91041.0,91040.0,0.4171]
[1745341593290,0.1097835,91041.0,91040.0,0.39968656]
[1745341594499,0.1097835,91041.0,91040.0,0.39668656]
[1745341594799,0.1097835,91041.0,91040.0,0.39968656]
[1745341596404,0.1097835,91041.0,91040.0,0.50947126]
[1745341596799,0.1097835,91041.0,91040.0,0.39968656]
[1745341597402,0.4705835,91041.0,91040.0,0.39968656]
[1745341597595,0.4705835,91041.0,91040.0,0.37331751]
[1745341597791,0.5579035,91041.0,91040.0,0.37331751]
[1745341597995,0.0548949,91036.0,91029.0,0.00164786]
[1745341598195,0.1097967,91030.0,91029.0,0.00164786]
[1745341598399,0.1098112,91018.0,91007.0,0.1053]
[1745341598600,0.0549112,91009.0,90990.0,0.57053136]
[1745341598791,0.1098281,91004.0,91001.0,0.0549155]
[1745341598996,0.1098281,91004.0,91003.0,0.4706293]
[1745341599699,0.0549133,91006.0,91005.0,0.1098269]
[1745341599907,0.30042,91008.0,91007.0,0.1098245]
[1745341600106,0.4102433,91008.0,91007.0,0.1098245]
[1745341600403,0.1098257,91006.0,91005.0,0.192]
[1745341601195,0.1098281,91004.0,91003.0,0.40768786]